Workbook

Sheet Stundennachweis_Abrechnung
A1: Abrechnungsnachweis kirchenmusikalischer Tätigkeiten und Stundennachweis nach Mindestlohngesetz | K1: Version 6.1 / ab Januar 2026
A3: Arbeitnehmer/in: | F3: Abrechnungszeitraum (Kalendermonat/Jahr) | K3: Hinweis: Das Formular ist am Monatsende bei der zuständigen personalverwaltenden Dienststelle einzureichen.
A5: Einstufung/ Entgeltsatz nach Entgeltstufe
A7: Arbeitgeber:
A9: Dokumentation: Arbeitszeit nach MiLoG | E9: Abrechnungsrelevante Daten | H9: Fahrtkostenzuschuss | L9: Berechnung des Entgelts
A10: Datum | B10: Beginn | C10: Ende | D10: Arbeitszeit abzüglich Pausen (in Stunden: Minuten) | E10: 1) Anlass / Gottesdienst und | F10: Tätigkeit | G10: 2) Chorproben / sonstige Tätigkeiten | H10: nur sofern im begründeten Ausnahmefall vertraglich vereinbart | L10: Vergütungs-satz | M10: Vergütungs-satz sonstige Tätigkeiten | N10: Summe
H11: Kilometer Wegstrecke KFZ | I11: Fahrtkosten-ersatz ÖPNV | J11: Hilfsspalte Fahrtkosten | K11: Dienstort
J12: =ROUND(IF(AND(H12<=5,I12=""),MIN(11,I12*1),MIN(H12*0.3+I12,11)),2) -> 0 | L12: =IF(ISNA(INDEX(Datentabelle!A:O,MATCH(E12&F12,Datentabelle!A:A&Datentabelle!B:B,0),MATCH($B$5,Datentabelle!$A$1:$O$1,0))),0,INDEX(Datentabelle!A:O,MATCH(E12&F12,Datentabelle!A:A&Datentabelle!B:B,0),MATCH($B$5,Datentabelle!$A$1:$O$1,0))) -> 0 | M12: =IF(ISNA(INDEX(Datentabelle!T:AG,MATCH(Stundennachweis_Abrechnung!G12,Datentabelle!T:T,0),MATCH(Stundennachweis_Abrechnung!$B$5,Datentabelle!$T$1:$AG$1,0))),0,INDEX(Datentabelle!T:AG,MATCH(Stundennachweis_Abrechnung!G12,Datentabelle!T:T,0),MATCH(Stundennachweis_Abrechnung!$B$5,Datentabelle!$T$1:$AG$1,0))) -> 0 | N12: =ROUND(L12+IF(G12='Drop Down'!$E$14,M12*((D12-INT(D12))*24),Stundennachweis_Abrechnung!M12),2) -> 0
J13: =ROUND(IF(AND(H13<=5,I13=""),MIN(11,I13*1),MIN(H13*0.3+I13,11)),2) -> 0 | L13: =IF(ISNA(INDEX(Datentabelle!A:O,MATCH(E13&F13,Datentabelle!A:A&Datentabelle!B:B,0),MATCH($B$5,Datentabelle!$A$1:$O$1,0))),0,INDEX(Datentabelle!A:O,MATCH(E13&F13,Datentabelle!A:A&Datentabelle!B:B,0),MATCH($B$5,Datentabelle!$A$1:$O$1,0))) -> 0 | M13: =IF(ISNA(INDEX(Datentabelle!T:AG,MATCH(Stundennachweis_Abrechnung!G13,Datentabelle!T:T,0),MATCH(Stundennachweis_Abrechnung!$B$5,Datentabelle!$T$1:$AG$1,0))),0,INDEX(Datentabelle!T:AG,MATCH(Stundennachweis_Abrechnung!G13,Datentabelle!T:T,0),MATCH(Stundennachweis_Abrechnung!$B$5,Datentabelle!$T$1:$AG$1,0))) -> 0 | N13: =ROUND(L13+IF(G13='Drop Down'!$E$14,M13*((D13-INT(D13))*24),Stundennachweis_Abrechnung!M13),2) -> 0
J14: 0 | L14: =IF(ISNA(INDEX(Datentabelle!A:O,MATCH(E14&F14,Datentabelle!A:A&Datentabelle!B:B,0),MATCH($B$5,Datentabelle!$A$1:$O$1,0))),0,INDEX(Datentabelle!A:O,MATCH(E14&F14,Datentabelle!A:A&Datentabelle!B:B,0),MATCH($B$5,Datentabelle!$A$1:$O$1,0))) -> 0 | M14: =IF(ISNA(INDEX(Datentabelle!T:AG,MATCH(Stundennachweis_Abrechnung!G14,Datentabelle!T:T,0),MATCH(Stundennachweis_Abrechnung!$B$5,Datentabelle!$T$1:$AG$1,0))),0,INDEX(Datentabelle!T:AG,MATCH(Stundennachweis_Abrechnung!G14,Datentabelle!T:T,0),MATCH(Stundennachweis_Abrechnung!$B$5,Datentabelle!$T$1:$AG$1,0))) -> 0 | N14: =ROUND(L14+IF(G14='Drop Down'!$E$14,M14*((D14-INT(D14))*24),Stundennachweis_Abrechnung!M14),2) -> 0
J15: 0 | L15: =IF(ISNA(INDEX(Datentabelle!A:O,MATCH(E15&F15,Datentabelle!A:A&Datentabelle!B:B,0),MATCH($B$5,Datentabelle!$A$1:$O$1,0))),0,INDEX(Datentabelle!A:O,MATCH(E15&F15,Datentabelle!A:A&Datentabelle!B:B,0),MATCH($B$5,Datentabelle!$A$1:$O$1,0))) -> 0 | M15: =IF(ISNA(INDEX(Datentabelle!T:AG,MATCH(Stundennachweis_Abrechnung!G15,Datentabelle!T:T,0),MATCH(Stundennachweis_Abrechnung!$B$5,Datentabelle!$T$1:$AG$1,0))),0,INDEX(Datentabelle!T:AG,MATCH(Stundennachweis_Abrechnung!G15,Datentabelle!T:T,0),MATCH(Stundennachweis_Abrechnung!$B$5,Datentabelle!$T$1:$AG$1,0))) -> 0 | N15: =ROUND(L15+IF(G15='Drop Down'!$E$14,M15*((D15-INT(D15))*24),Stundennachweis_Abrechnung!M15),2) -> 0
J16: 0 | L16: =IF(ISNA(INDEX(Datentabelle!A:O,MATCH(E16&F16,Datentabelle!A:A&Datentabelle!B:B,0),MATCH($B$5,Datentabelle!$A$1:$O$1,0))),0,INDEX(Datentabelle!A:O,MATCH(E16&F16,Datentabelle!A:A&Datentabelle!B:B,0),MATCH($B$5,Datentabelle!$A$1:$O$1,0))) -> 0 | M16: =IF(ISNA(INDEX(Datentabelle!T:AG,MATCH(Stundennachweis_Abrechnung!G16,Datentabelle!T:T,0),MATCH(Stundennachweis_Abrechnung!$B$5,Datentabelle!$T$1:$AG$1,0))),0,INDEX(Datentabelle!T:AG,MATCH(Stundennachweis_Abrechnung!G16,Datentabelle!T:T,0),MATCH(Stundennachweis_Abrechnung!$B$5,Datentabelle!$T$1:$AG$1,0))) -> 0 | N16: =ROUND(L16+IF(G16='Drop Down'!$E$14,M16*((D16-INT(D16))*24),Stundennachweis_Abrechnung!M16),2) -> 0
J17: 0 | L17: =IF(ISNA(INDEX(Datentabelle!A:O,MATCH(E17&F17,Datentabelle!A:A&Datentabelle!B:B,0),MATCH($B$5,Datentabelle!$A$1:$O$1,0))),0,INDEX(Datentabelle!A:O,MATCH(E17&F17,Datentabelle!A:A&Datentabelle!B:B,0),MATCH($B$5,Datentabelle!$A$1:$O$1,0))) -> 0 | M17: =IF(ISNA(INDEX(Datentabelle!T:AG,MATCH(Stundennachweis_Abrechnung!G17,Datentabelle!T:T,0),MATCH(Stundennachweis_Abrechnung!$B$5,Datentabelle!$T$1:$AG$1,0))),0,INDEX(Datentabelle!T:AG,MATCH(Stundennachweis_Abrechnung!G17,Datentabelle!T:T,0),MATCH(Stundennachweis_Abrechnung!$B$5,Datentabelle!$T$1:$AG$1,0))) -> 0 | N17: =ROUND(L17+IF(G17='Drop Down'!$E$14,M17*((D17-INT(D17))*24),Stundennachweis_Abrechnung!M17),2) -> 0
J18: 0 | L18: =IF(ISNA(INDEX(Datentabelle!A:O,MATCH(E18&F18,Datentabelle!A:A&Datentabelle!B:B,0),MATCH($B$5,Datentabelle!$A$1:$O$1,0))),0,INDEX(Datentabelle!A:O,MATCH(E18&F18,Datentabelle!A:A&Datentabelle!B:B,0),MATCH($B$5,Datentabelle!$A$1:$O$1,0))) -> 0 | M18: =IF(ISNA(INDEX(Datentabelle!T:AG,MATCH(Stundennachweis_Abrechnung!G18,Datentabelle!T:T,0),MATCH(Stundennachweis_Abrechnung!$B$5,Datentabelle!$T$1:$AG$1,0))),0,INDEX(Datentabelle!T:AG,MATCH(Stundennachweis_Abrechnung!G18,Datentabelle!T:T,0),MATCH(Stundennachweis_Abrechnung!$B$5,Datentabelle!$T$1:$AG$1,0))) -> 0 | N18: =ROUND(L18+IF(G18='Drop Down'!$E$14,M18*((D18-INT(D18))*24),Stundennachweis_Abrechnung!M18),2) -> 0
J19: 0 | L19: =IF(ISNA(INDEX(Datentabelle!A:O,MATCH(E19&F19,Datentabelle!A:A&Datentabelle!B:B,0),MATCH($B$5,Datentabelle!$A$1:$O$1,0))),0,INDEX(Datentabelle!A:O,MATCH(E19&F19,Datentabelle!A:A&Datentabelle!B:B,0),MATCH($B$5,Datentabelle!$A$1:$O$1,0))) -> 0 | M19: =IF(ISNA(INDEX(Datentabelle!T:AG,MATCH(Stundennachweis_Abrechnung!G19,Datentabelle!T:T,0),MATCH(Stundennachweis_Abrechnung!$B$5,Datentabelle!$T$1:$AG$1,0))),0,INDEX(Datentabelle!T:AG,MATCH(Stundennachweis_Abrechnung!G19,Datentabelle!T:T,0),MATCH(Stundennachweis_Abrechnung!$B$5,Datentabelle!$T$1:$AG$1,0))) -> 0 | N19: =ROUND(L19+IF(G19='Drop Down'!$E$14,M19*((D19-INT(D19))*24),Stundennachweis_Abrechnung!M19),2) -> 0
J20: 0 | L20: =IF(ISNA(INDEX(Datentabelle!A:O,MATCH(E20&F20,Datentabelle!A:A&Datentabelle!B:B,0),MATCH($B$5,Datentabelle!$A$1:$O$1,0))),0,INDEX(Datentabelle!A:O,MATCH(E20&F20,Datentabelle!A:A&Datentabelle!B:B,0),MATCH($B$5,Datentabelle!$A$1:$O$1,0))) -> 0 | M20: =IF(ISNA(INDEX(Datentabelle!T:AG,MATCH(Stundennachweis_Abrechnung!G20,Datentabelle!T:T,0),MATCH(Stundennachweis_Abrechnung!$B$5,Datentabelle!$T$1:$AG$1,0))),0,INDEX(Datentabelle!T:AG,MATCH(Stundennachweis_Abrechnung!G20,Datentabelle!T:T,0),MATCH(Stundennachweis_Abrechnung!$B$5,Datentabelle!$T$1:$AG$1,0))) -> 0 | N20: =ROUND(L20+IF(G20='Drop Down'!$E$14,M20*((D20-INT(D20))*24),Stundennachweis_Abrechnung!M20),2) -> 0
J21: 0 | L21: =IF(ISNA(INDEX(Datentabelle!A:O,MATCH(E21&F21,Datentabelle!A:A&Datentabelle!B:B,0),MATCH($B$5,Datentabelle!$A$1:$O$1,0))),0,INDEX(Datentabelle!A:O,MATCH(E21&F21,Datentabelle!A:A&Datentabelle!B:B,0),MATCH($B$5,Datentabelle!$A$1:$O$1,0))) -> 0 | M21: =IF(ISNA(INDEX(Datentabelle!T:AG,MATCH(Stundennachweis_Abrechnung!G21,Datentabelle!T:T,0),MATCH(Stundennachweis_Abrechnung!$B$5,Datentabelle!$T$1:$AG$1,0))),0,INDEX(Datentabelle!T:AG,MATCH(Stundennachweis_Abrechnung!G21,Datentabelle!T:T,0),MATCH(Stundennachweis_Abrechnung!$B$5,Datentabelle!$T$1:$AG$1,0))) -> 0 | N21: =ROUND(L21+IF(G21='Drop Down'!$E$14,M21*((D21-INT(D21))*24),Stundennachweis_Abrechnung!M21),2) -> 0
J22: 0 | L22: =IF(ISNA(INDEX(Datentabelle!A:O,MATCH(E22&F22,Datentabelle!A:A&Datentabelle!B:B,0),MATCH($B$5,Datentabelle!$A$1:$O$1,0))),0,INDEX(Datentabelle!A:O,MATCH(E22&F22,Datentabelle!A:A&Datentabelle!B:B,0),MATCH($B$5,Datentabelle!$A$1:$O$1,0))) -> 0 | M22: =IF(ISNA(INDEX(Datentabelle!T:AG,MATCH(Stundennachweis_Abrechnung!G22,Datentabelle!T:T,0),MATCH(Stundennachweis_Abrechnung!$B$5,Datentabelle!$T$1:$AG$1,0))),0,INDEX(Datentabelle!T:AG,MATCH(Stundennachweis_Abrechnung!G22,Datentabelle!T:T,0),MATCH(Stundennachweis_Abrechnung!$B$5,Datentabelle!$T$1:$AG$1,0))) -> 0 | N22: =ROUND(L22+IF(G22='Drop Down'!$E$14,M22*((D22-INT(D22))*24),Stundennachweis_Abrechnung!M22),2) -> 0
G23: Summe Fahrtkostenzuschuss: | H23: =SUM(J12:J22) -> 0 | L23: Summe Entgelt: | N23: =SUM(N12:N22) -> 0
A27: Datum | D27: Unterschrift Kirchenmusiker/-in | G27: Datum | I27: Unterschrift Sachbearbeiter/-in
A31: Datum | D31: Unterschrift Anordnungsberechtigte/-r

Sheet Datentabelle (hidden)
A1: Anlass Gottesdienst | B1: Tätigkeit | C1: DE | D1: A | E1: B+50% (Besitzstand gem. § 16 Abs. 2 Anlage 4f zur AVO) | F1: B | G1: 90%B | H1: C+50% (Besitzstand gem. § 16 Abs. 2 Anlage 4f zur AVO) | I1: 80%B | J1: C | K1: D+50% (Besitzstand gem. § 16 Abs. 2 Anlage 4f zur AVO) | L1: 95%C | M1: D | N1: B (Besitzstand gem. § 16 Abs. 1 Anlage 4f zur AVO) | O1: 90%B (Besitzstand nach § 16 Abs. 2 Anlage 4f zur AVO) | T1: sonstige Tätigkeit | U1: Diensteinheiten | V1: A | W1: B+50% (Besitzstand gem. § 16 Abs. 2 Anlage 4f zur AVO) | X1: B | Y1: 90%B | Z1: C+50% (Besitzstand gem. § 16 Abs. 2 Anlage 4f zur AVO) | AA1: 80%B | AB1: C | AC1: D+50% (Besitzstand gem. § 16 Abs. 2 Anlage 4f zur AVO) | AD1: 95%C | AE1: D | AF1: B (Besitzstand gem. § 16 Abs. 1 Anlage 4f zur AVO) | AG1: 90%B (Besitzstand nach § 16 Abs. 2 Anlage 4f zur AVO)
A2: Gottesdienste an Sonntagen (einschl. Vorabend) und Feiertagen | B2: Orgelspiel | C2: 1 | D2: 66.38 € | E2: =ROUND(F2+(D2-F2)*0.5,2) -> 61.21 € | F2: 56.03 € | G2: =ROUND(0.9*F2,2) -> 50.43 € | H2: =ROUND(J2+(F2-J2)*0.5,2) -> 49.31 € | I2: =ROUND(0.8*F2,2) -> 44.82 € | J2: 42.58 € | K2: =ROUND(M2+(J2-M2)*0.5,2) -> 41.13 € | L2: =ROUND(0.95*J2,2) -> 40.45 € | M2: 39.67 € | N2: 56.030 € | O2: =ROUND(0.9*N2,2) -> 50.430 € | T2: Chorprobe/Ensembleprobe bis einschl. 60 min | U2: 1 | V2: 66.380 € | W2: =ROUND(X2+(V2-X2)*0.5,2) -> 61.210 € | X2: 56.030 € | Y2: =ROUND(0.9*X2,2) -> 50.430 € | Z2: =ROUND(AB2+(X2-AB2)*0.5,2) -> 49.310 € | AA2: =ROUND(0.8*X2,2) -> 44.820 € | AB2: 42.580 € | AC2: =ROUND(AE2+(AB2-AE2)*0.5,2) -> 41.130 € | AD2: =ROUND(0.95*AB2,2) -> 40.450 € | AE2: 39.670 € | AF2: 56.030 € | AG2: =ROUND(0.9*AF2,2) -> 50.430 €
A3: Gottesdienste an Sonntagen (einschl. Vorabend) und Feiertagen | B3: Chorleitung (mit Einsingen) | C3: 1.5 | D3: 99.58 € | E3: =ROUND(F3+(D3-F3)*0.5,2) -> 91.82 € | F3: 84.05 € | G3: =ROUND(0.9*F3,2) -> 75.65 € | H3: =ROUND(J3+(F3-J3)*0.5,2) -> 73.97 € | I3: =ROUND(0.8*F3,2) -> 67.24 € | J3: 63.88 € | K3: =ROUND(M3+(J3-M3)*0.5,2) -> 61.69 € | L3: =ROUND(0.95*J3,2) -> 60.69 € | M3: 59.50 € | N3: 84.050 € | O3: =ROUND(0.9*N3,2) -> 75.650 € | T3: Chorprobe/Ensembleprobe bis einschl. 90 min | U3: 1.5 | V3: 99.580 € | W3: 91.820 € | X3: 84.050 € | Y3: 75.650 € | Z3: 73.970 € | AA3: 67.240 € | AB3: 63.880 € | AC3: 61.690 € | AD3: =ROUND(0.95*AB3,2) -> 60.690 € | AE3: 59.500 € | AF3: 84.050 € | AG3: =ROUND(0.9*AF3,2) -> 75.650 €
A4: Gottesdienste an Sonntagen (einschl. Vorabend) und Feiertagen | B4: Orgelspiel und Chorleitung (mit Einsingen) | C4: 1.5 | D4: 99.58 € | E4: 91.82 € | F4: 84.05 € | G4: 75.65 € | H4: 73.97 € | I4: 67.24 € | J4: 63.88 € | K4: 61.69 € | L4: 60.69 € | M4: 59.50 € | N4: 84.050 € | O4: =ROUND(0.9*N4,2) -> 75.650 € | T4: Chorprobe/Ensembleprobe bis einschl. 120 min | U4: 2 | V4: 132.770 € | W4: 122.420 € | X4: 112.070 € | Y4: 100.860 € | Z4: 98.620 € | AA4: 89.660 € | AB4: 85.170 € | AC4: 82.250 € | AD4: 80.910 € | AE4: 79.330 € | AF4: 112.070 € | AG4: 100.860 €
A5: Werktagsgottesdienst | B5: Orgelspiel | C5: 1 | D5: 66.38 € | E5: 61.21 € | F5: 56.03 € | G5: 50.43 € | H5: 49.31 € | I5: 44.82 € | J5: 42.58 € | K5: 41.13 € | L5: 40.45 € | M5: 39.67 € | N5: 56.030 € | O5: 50.430 € | T5: Chorprobe mit Kinder- und Jugendchor bis einschl. 60 min | U5: 1 | V5: 66.380 € | W5: 61.210 € | X5: 56.030 € | Y5: 50.430 € | Z5: 49.310 € | AA5: 44.820 € | AB5: 42.580 € | AC5: 41.130 € | AD5: 40.450 € | AE5: 39.670 € | AF5: 56.030 € | AG5: 50.430 €
A6: Werktagsgottesdienst | B6: Chorleitung (mit Einsingen) | C6: 1.5 | D6: 99.58 € | E6: =ROUND(F6+(D6-F6)*0.5,2) -> 91.82 € | F6: 84.05 € | G6: 75.65 € | H6: 73.97 € | I6: 67.24 € | J6: 63.88 € | K6: 61.69 € | L6: 60.69 € | M6: 59.50 € | N6: 84.050 € | O6: 75.650 € | T6: Chorprobe mit Kinder- und Jugendchor bis einschl. 90 min | U6: 1.5 | V6: 99.580 € | W6: 91.820 € | X6: 84.050 € | Y6: 75.650 € | Z6: 73.970 € | AA6: 67.240 € | AB6: 63.880 € | AC6: 61.690 € | AD6: 60.690 € | AE6: 59.500 € | AF6: 84.050 € | AG6: 75.650 €
A7: Werktagsgottesdienst | B7: Orgelspiel und Chorleitung (mit Einsingen) | C7: 1.5 | D7: 99.58 € | E7: =ROUND(F7+(D7-F7)*0.5,2) -> 91.82 € | F7: 84.05 € | G7: 75.65 € | H7: 73.97 € | I7: 67.24 € | J7: 63.88 € | K7: 61.69 € | L7: 60.69 € | M7: 59.50 € | N7: 84.050 € | O7: 75.650 € | T7: Prozession mit Chorgesang bis einschl. 60 min | U7: 1 | V7: 66.380 € | W7: 61.210 € | X7: 56.030 € | Y7: 50.430 € | Z7: 49.310 € | AA7: 44.820 € | AB7: 42.580 € | AC7: 41.130 € | AD7: 40.450 € | AE7: 39.670 € | AF7: 56.030 € | AG7: 50.430 €
A8: Christmette | B8: Orgelspiel | C8: 2 | D8: 132.77 € | E8: 122.42 € | F8: 112.07 € | G8: 100.86 € | H8: 98.62 € | I8: 89.66 € | J8: 85.17 € | K8: 82.25 € | L8: 80.91 € | M8: 79.33 € | N8: 112.070 € | O8: 100.860 € | T8: Prozession mit Chorgesang bis einschl. 90 min | U8: 1.5 | V8: 99.580 € | W8: 91.820 € | X8: 84.050 € | Y8: 75.650 € | Z8: 73.970 € | AA8: 67.240 € | AB8: 63.880 € | AC8: 61.690 € | AD8: 60.690 € | AE8: 59.500 € | AF8: 84.050 € | AG8: 75.650 €
A9: Christmette | B9: Chorleitung (mit Einsingen) | C9: 2.5 | D9: 165.96 € | E9: 153.02 € | F9: 140.08 € | G9: 126.07 € | H9: 123.27 € | I9: 112.06 € | J9: 106.46 € | K9: 102.82 € | L9: 101.14 € | M9: 99.17 € | N9: 140.080 € | O9: 126.070 € | T9: Unterricht bis einschl. 30 min | U9: 0.5 | V9: 33.190 € | W9: 30.610 € | X9: 28.020 € | Y9: 25.220 € | Z9: 24.660 € | AA9: 22.420 € | AB9: 21.290 € | AC9: 20.560 € | AD9: 20.230 € | AE9: 19.830 € | AF9: 28.020 € | AG9: 25.220 €
A10: Christmette | B10: Orgelspiel und Chorleitung (mit Einsingen) | C10: 2.5 | D10: 165.96 € | E10: 153.02 € | F10: 140.08 € | G10: 126.07 € | H10: 123.27 € | I10: 112.06 € | J10: 106.46 € | K10: 102.82 € | L10: 101.14 € | M10: 99.17 € | N10: 140.080 € | O10: 126.070 € | T10: Unterricht bis einschl. 60 min | U10: 1 | V10: 66.380 € | W10: 61.210 € | X10: 56.030 € | Y10: 50.430 € | Z10: 49.310 € | AA10: 44.820 € | AB10: 42.580 € | AC10: 41.130 € | AD10: 40.450 € | AE10: 39.670 € | AF10: 56.030 € | AG10: 50.430 €
A11: Kinderchristmette | B11: Orgelspiel | C11: 1 | D11: 66.38 € | E11: 61.21 € | F11: 56.03 € | G11: 50.43 € | H11: 49.31 € | I11: 44.82 € | J11: 42.58 € | K11: 41.11 € | L11: 40.45 € | M11: 39.64 € | N11: 56.030 € | O11: 50.430 € | T11: Konzertdauer bis einschl. 60 Minuten + Einsingen/Einspielen | U11: 1.5 | V11: 99.580 € | W11: 91.820 € | X11: 84.050 € | Y11: 75.650 € | Z11: 73.970 € | AA11: 67.240 € | AB11: 63.880 € | AC11: 61.690 € | AD11: 60.690 € | AE11: 59.500 € | AF11: 84.050 € | AG11: 75.650 €
A12: Kinderchristmette | B12: Chorleitung (mit Einsingen) | C12: 1.5 | D12: 99.58 € | E12: 91.82 € | F12: 84.05 € | G12: 75.65 € | H12: 73.97 € | I12: 67.24 € | J12: 63.88 € | K12: 61.69 € | L12: 60.69 € | M12: 59.50 € | N12: 84.050 € | O12: 75.650 € | T12: Konzertdauer bis einschl. 90 Minuten + Einsingen/Einspielen | U12: 2 | V12: 132.770 € | W12: 122.420 € | X12: 112.070 € | Y12: 100.860 € | Z12: 98.620 € | AA12: 89.660 € | AB12: 85.170 € | AC12: 82.250 € | AD12: 80.910 € | AE12: 79.330 € | AF12: 112.070 € | AG12: 100.860 €
A13: Kinderchristmette | B13: Orgelspiel und Chorleitung (mit Einsingen) | C13: 1.5 | D13: 99.58 € | E13: 91.82 € | F13: 84.05 € | G13: 75.65 € | H13: 73.97 € | I13: 67.24 € | J13: 63.88 € | K13: 61.69 € | L13: 60.69 € | M13: 59.50 € | N13: 84.050 € | O13: 75.650 € | T13: Konzertdauer über 90 Minuten + Einsingen/Einspielen | U13: 2.5 | V13: 165.960 € | W13: 153.020 € | X13: 140.080 € | Y13: 126.070 € | Z13: 123.270 € | AA13: 112.060 € | AB13: 106.460 € | AC13: 102.820 € | AD13: 101.140 € | AE13: 99.170 € | AF13: 140.080 € | AG13: 126.070 €
A14: Gottesdienst in der Osternacht | B14: Orgelspiel | C14: 2 | D14: 132.77 € | E14: 122.42 € | F14: 112.07 € | G14: 100.86 € | H14: 98.62 € | I14: 89.66 € | J14: 85.17 € | K14: 82.25 € | L14: 80.91 € | M14: 79.33 € | N14: 112.070 € | O14: 100.860 € | T14: ='Drop Down'!E14 -> Sonstige vereinbarte Tätigkeit gem. § 12 Abs. 3 Anlage 4f zur AVO | V14: 39.830 € | W14: 36.730 € | X14: 33.620 € | Y14: 30.260 € | Z14: 29.590 € | AA14: 26.900 € | AB14: 25.550 € | AC14: 24.680 € | AD14: 24.270 € | AE14: 23.800 € | AF14: 33.620 € | AG14: 30.260 €
A15: Gottesdienst in der Osternacht | B15: Chorleitung (mit Einsingen) | C15: 2.5 | D15: 165.96 € | E15: 153.02 € | F15: 140.08 € | G15: 126.07 € | H15: 123.27 € | I15: 112.06 € | J15: 106.46 € | K15: 102.82 € | L15: 101.14 € | M15: 99.17 € | N15: 140.080 € | O15: 126.070 €
A16: Gottesdienst in der Osternacht | B16: Orgelspiel und Chorleitung (mit Einsingen) | C16: 2.5 | D16: 165.96 € | E16: 153.02 € | F16: 140.08 € | G16: 126.07 € | H16: 123.27 € | I16: 112.06 € | J16: 106.46 € | K16: 102.82 € | L16: 101.14 € | M16: 99.17 € | N16: 140.080 € | O16: 126.070 €
A17: Gottesdienst am Gründonnerstag | B17: Orgelspiel | C17: 1 | D17: 66.38 € | E17: 61.21 € | F17: 56.03 € | G17: 50.43 € | H17: 49.31 € | I17: 44.82 € | J17: 42.58 € | K17: 41.13 € | L17: 40.45 € | M17: 39.67 € | N17: 56.030 € | O17: 50.430 €
A18: Gottesdienst am Gründonnerstag | B18: Chorleitung (mit Einsingen) | C18: 1.5 | D18: 99.58 € | E18: 91.82 € | F18: 84.05 € | G18: 75.65 € | H18: 73.97 € | I18: 67.24 € | J18: 63.88 € | K18: 61.69 € | L18: 60.69 € | M18: 59.50 € | N18: 84.050 € | O18: 75.650 €
A19: Gottesdienst am Gründonnerstag | B19: Orgelspiel und Chorleitung (mit Einsingen) | C19: 1.5 | D19: 99.58 € | E19: 91.82 € | F19: 84.05 € | G19: 75.65 € | H19: 73.97 € | I19: 67.24 € | J19: 63.88 € | K19: 61.69 € | L19: 60.69 € | M19: 59.50 € | N19: 84.050 € | O19: 75.650 €
A20: Karfreitagsliturgie | B20: Orgelspiel | C20: 1.5 | D20: 99.58 € | E20: 91.82 € | F20: 84.05 € | G20: 75.65 € | H20: 73.97 € | I20: 67.24 € | J20: 63.88 € | K20: 61.69 € | L20: 60.69 € | M20: 59.50 € | N20: 84.050 € | O20: 75.650 €
A21: Karfreitagsliturgie | B21: Chorleitung (mit Einsingen) | C21: 2 | D21: 132.77 € | E21: 122.42 € | F21: 112.07 € | G21: 100.86 € | H21: 98.62 € | I21: 89.66 € | J21: 85.17 € | K21: 82.25 € | L21: 80.91 € | M21: 79.33 € | N21: 112.070 € | O21: 100.860 €
A22: Karfreitagsliturgie | B22: Orgelspiel und Chorleitung (mit Einsingen) | C22: 2 | D22: 132.77 € | E22: 122.42 € | F22: 112.07 € | G22: 100.86 € | H22: 98.62 € | I22: 89.66 € | J22: 85.17 € | K22: 82.25 € | L22: 80.91 € | M22: 79.33 € | N22: 112.070 € | O22: 100.860 €
A23: Erstkommunionsfeiern | B23: Orgelspiel | C23: 1.5 | D23: 99.58 € | E23: 91.82 € | F23: 84.05 € | G23: 75.65 € | H23: 73.97 € | I23: 67.24 € | J23: 63.88 € | K23: 61.69 € | L23: 60.69 € | M23: 59.50 € | N23: 84.050 € | O23: 75.650 €
A24: Erstkommunionsfeiern | B24: Chorleitung (mit Einsingen) | C24: 2 | D24: 132.77 € | E24: 122.42 € | F24: 112.07 € | G24: 100.86 € | H24: 98.62 € | I24: 89.66 € | J24: 85.17 € | K24: 82.25 € | L24: 80.91 € | M24: 79.33 € | N24: 112.070 € | O24: 100.860 €
A25: Erstkommunionsfeiern | B25: Orgelspiel und Chorleitung (mit Einsingen) | C25: 2 | D25: 132.77 € | E25: 122.42 € | F25: 112.07 € | G25: 100.86 € | H25: 98.62 € | I25: 89.66 € | J25: 85.17 € | K25: 82.25 € | L25: 80.91 € | M25: 79.33 € | N25: 112.070 € | O25: 100.860 €
A26: Firmungen | B26: Orgelspiel | C26: 2 | D26: 132.77 € | E26: 122.42 € | F26: 112.07 € | G26: 100.86 € | H26: 98.62 € | I26: 89.66 € | J26: 85.17 € | K26: 82.25 € | L26: 80.91 € | M26: 79.33 € | N26: 112.070 € | O26: 100.860 €
A27: Firmungen | B27: Chorleitung (mit Einsingen) | C27: 2.5 | D27: 165.96 € | E27: 153.02 € | F27: 140.08 € | G27: 126.07 € | H27: 123.27 € | I27: 112.06 € | J27: 106.46 € | K27: 102.82 € | L27: 101.14 € | M27: 99.17 € | N27: 140.080 € | O27: 126.070 €
A28: Firmungen | B28: Orgelspiel und Chorleitung (mit Einsingen) | C28: 2.5 | D28: 165.96 € | E28: 153.02 € | F28: 140.08 € | G28: 126.07 € | H28: 123.27 € | I28: 112.06 € | J28: 106.46 € | K28: 102.82 € | L28: 101.14 € | M28: 99.17 € | N28: 140.080 € | O28: 126.070 €
A29: Tauffeiern | B29: Orgelspiel | C29: 1 | D29: 66.38 € | E29: 61.21 € | F29: 56.03 € | G29: 50.43 € | H29: 49.31 € | I29: 44.82 € | J29: 42.58 € | K29: 41.13 € | L29: 40.45 € | M29: 39.67 € | N29: 56.030 € | O29: 50.430 €
A30: Tauffeiern | B30: Chorleitung (mit Einsingen) | C30: 1.5 | D30: 99.58 € | E30: 91.82 € | F30: 84.05 € | G30: 75.65 € | H30: 73.97 € | I30: 67.24 € | J30: 63.88 € | K30: 61.69 € | L30: 60.69 € | M30: 59.50 € | N30: 84.050 € | O30: 75.650 €
A31: Tauffeiern | B31: Orgelspiel und Chorleitung (mit Einsingen) | C31: 1.5 | D31: 99.58 € | E31: 91.82 € | F31: 84.05 € | G31: 75.65 € | H31: 73.97 € | I31: 67.24 € | J31: 63.88 € | K31: 61.69 € | L31: 60.69 € | M31: 59.50 € | N31: 84.050 € | O31: 75.650 €
A32: Trauungen | B32: Orgelspiel | C32: 1 | D32: 66.38 € | E32: 61.21 € | F32: 56.03 € | G32: 50.43 € | H32: 49.31 € | I32: 44.82 € | J32: 42.58 € | K32: 41.13 € | L32: 40.45 € | M32: 39.67 € | N32: 56.030 € | O32: 50.430 €
A33: Trauungen | B33: Chorleitung (mit Einsingen) | C33: 1.5 | D33: 99.58 € | E33: 91.82 € | F33: 84.05 € | G33: 75.65 € | H33: 73.97 € | I33: 67.24 € | J33: 63.88 € | K33: 61.69 € | L33: 60.69 € | M33: 59.50 € | N33: 84.050 € | O33: 75.650 €
A34: Trauungen | B34: Orgelspiel und Chorleitung (mit Einsingen) | C34: 1.5 | D34: 99.58 € | E34: 91.82 € | F34: 84.05 € | G34: 75.65 € | H34: 73.97 € | I34: 67.24 € | J34: 63.88 € | K34: 61.69 € | L34: 60.69 € | M34: 59.50 € | N34: 84.050 € | O34: 75.650 €
A35: Seelenamt + Aussegnung bzw. Trauerfeier + Aussegnung | B35: Orgelspiel | C35: 1 | D35: 66.38 € | E35: 61.21 € | F35: 56.03 € | G35: 50.43 € | H35: 49.31 € | I35: 44.82 € | J35: 42.58 € | K35: 41.13 € | L35: 40.45 € | M35: 39.67 € | N35: 56.030 € | O35: 50.430 €
A36: Seelenamt + Aussegnung bzw. Trauerfeier + Aussegnung | B36: Chorleitung (mit Einsingen) | C36: 1.5 | D36: 99.58 € | E36: 91.82 € | F36: 84.05 € | G36: 75.65 € | H36: 73.97 € | I36: 67.24 € | J36: 63.88 € | K36: 61.69 € | L36: 60.69 € | M36: 59.50 € | N36: 84.050 € | O36: 75.650 €
A37: Seelenamt + Aussegnung bzw. Trauerfeier + Aussegnung | B37: Orgelspiel und Chorleitung (mit Einsingen) | C37: 1.5 | D37: 99.58 € | E37: 91.82 € | F37: 84.05 € | G37: 75.65 € | H37: 73.97 € | I37: 67.24 € | J37: 63.88 € | K37: 61.69 € | L37: 60.69 € | M37: 59.50 € | N37: 84.050 € | O37: 75.650 €
A38: Andachten (bis einschl. 30min) | B38: Orgelspiel | C38: 0.5 | D38: 33.19 € | E38: 30.61 € | F38: 28.02 € | G38: 25.22 € | H38: 24.66 € | I38: 22.42 € | J38: 21.29 € | K38: 20.56 € | L38: 20.23 € | M38: 19.83 € | N38: 28.020 € | O38: =ROUND(0.9*N38,2) -> 25.220 €
A39: Andachten (bis einschl. 30min) | B39: Chorleitung (mit Einsingen) | C39: 1 | D39: 66.38 € | E39: 61.21 € | F39: 56.03 € | G39: 50.43 € | H39: 49.31 € | I39: 44.82 € | J39: 42.58 € | K39: 41.13 € | L39: 40.45 € | M39: 39.67 € | N39: 56.030 € | O39: 50.430 €
A40: Andachten (bis einschl. 30min) | B40: Orgelspiel und Chorleitung (mit Einsingen) | C40: 1 | D40: 66.38 € | E40: 61.21 € | F40: 56.03 € | G40: 50.43 € | H40: 49.31 € | I40: 44.82 € | J40: 42.58 € | K40: 41.13 € | L40: 40.45 € | M40: 39.67 € | N40: 56.030 € | O40: 50.430 €
A41: Andachten (bis einschl. 60min) | B41: Orgelspiel | C41: 1 | D41: 66.38 € | E41: 61.21 € | F41: 56.03 € | G41: 50.43 € | H41: 49.31 € | I41: 44.82 € | J41: 42.58 € | K41: 41.13 € | L41: 40.45 € | M41: 39.67 € | N41: 56.030 € | O41: 50.430 €
A42: Andachten (bis einschl. 60min) | B42: Chorleitung (mit Einsingen) | C42: 1.5 | D42: 99.58 € | E42: 91.82 € | F42: 84.05 € | G42: 75.65 € | H42: 73.97 € | I42: 67.24 € | J42: 63.88 € | K42: 61.69 € | L42: 60.69 € | M42: 59.50 € | N42: 84.050 € | O42: 75.650 €
A43: Andachten (bis einschl. 60min) | B43: Orgelspiel und Chorleitung (mit Einsingen) | C43: 1.5 | D43: 99.58 € | E43: 91.82 € | F43: 84.05 € | G43: 75.65 € | H43: 73.97 € | I43: 67.24 € | J43: 63.88 € | K43: 61.69 € | L43: 60.69 € | M43: 59.50 € | N43: 84.050 € | O43: 75.650 €

Sheet Drop Down (hidden)
A1: Gottesdienst | C1: Tätigkeiten | E1: sonstige Tätigkeiten | G1: Qualifikation | I1: Arbeitgeber | K1: Auftraggeber | M1: GKG | O1: Fonds
A2: Gottesdienste an Sonntagen (einschl. Vorabend) und Feiertagen | C2: Orgelspiel | E2: Chorprobe/Ensembleprobe bis einschl. 60 min | G2: A | I2: Acher-Renchtal | K2: Römisch-katholische Kirchengemeinde | O2: Lindenberg
A3: Werktagsgottesdienst | C3: Chorleitung (mit Einsingen) | E3: Chorprobe/Ensembleprobe bis einschl. 90 min | G3: B | I3: An der Elz | K3: Erzdiözese Freiburg
A4: Christmette | C4: Orgelspiel und Chorleitung (mit Einsingen) | E4: Chorprobe/Ensembleprobe bis einschl. 120 min | G4: 90%B | I4: An der Wutach | K4: Kapellenfond Lindenberg
A5: Kinderchristmette | E5: Chorprobe mit Kinder- und Jugendchor bis einschl. 60 min | G5: 80%B | I5: An Tauber und Main
A6: Gottesdienst in der Osternacht | E6: Chorprobe mit Kinder- und Jugendchor bis einschl. 90 min | G6: C | I6: Baden-Baden
A7: Gottesdienst am Gründonnerstag | E7: Prozession mit Chorgesang bis einschl. 60 min | G7: 95%C | I7: Bauland-Odenwald
A8: Karfreitagsliturgie | E8: Prozession mit Chorgesang bis einschl. 90 min | G8: D | I8: Bodensee-Hegau
A9: Erstkommunionsfeiern | E9: Unterricht bis einschl. 30 min | G9: B+50% (Besitzstand gem. § 16 Abs. 2 Anlage 4f zur AVO) | I9: Breisgau-Markgräflerland
A10: Firmungen | E10: Unterricht bis einschl. 60 min | G10: C+50% (Besitzstand gem. § 16 Abs. 2 Anlage 4f zur AVO) | I10: Edith Stein Bruchsal
A11: Tauffeiern | E11: Konzertdauer bis einschl. 60 Minuten + Einsingen/Einspielen | G11: D+50% (Besitzstand gem. § 16 Abs. 2 Anlage 4f zur AVO) | I11: Freiburg im Breisgau
A12: Trauungen | E12: Konzertdauer bis einschl. 90 Minuten + Einsingen/Einspielen | G12: B (Besitzstand gem. § 16 Abs. 1 Anlage 4f zur AVO) | I12: Hegau
A13: Seelenamt + Aussegnung bzw. Trauerfeier + Aussegnung | E13: Konzertdauer über 90 Minuten + Einsingen/Einspielen | G13: 90%B (Besitzstand nach § 16 Abs. 2 Anlage 4f zur AVO) | I13: Heidelberg
A14: Andachten (bis einschl. 30min) | E14: Sonstige vereinbarte Tätigkeit gem. § 12 Abs. 3 Anlage 4f zur AVO | I14: Herz Jesu Pforzheim
A15: Andachten (bis einschl. 60min) | I15: Hl. Dreifaltigkeit Donaueschingen
I16: Hochrhein-Südschwarzwald
I17: Hochschwarzwald
I18: Im Quellenland
I19: Karlsruhe
I20: Kinzigtal
I21: Konstanz
I22: Kraichgau
I23: Lauda
I24: Linzgau-Bodensee
I25: Mannheim
I26: Mittlere Kurpfalz
I27: Mittlere Ortenau
I28: Murgtal
I29: Nordbadische Bergstraße
I30: Sigmaringen
I31: St. Alexander Rastatt
I32: St. Maria Mosbach-Neckarelz
I33: St. Martin Ettlingen
I34: Südliche Ortenau
I35: Wiesental-Dreiländereck
I36: Wiesloch
I37: Zollern
